Cogmind - Beta 9.6 @@@ ROGUE MODE // 2020.06.11 @ 04:26:40 Player: SteelGiant Result: Destroyed by P-60 Hacker with Shock Rifle Performance ------------- Evolutions (3) 1500 Regions Visited (6) 1200 Robots Destroyed (84) 420 Value Destroyed (2488) 2488 Prototype IDs (0) 0 Alien Tech Used (0) 0 Bonus (35) 35 TOTAL SCORE: 5643 Bonus ------- Follower Combat Kills 35 Cogmind --------- Core Integrity 0/700 Matter 300/300 Energy 96/100 System Corruption 8% Temperature Cool (0) Movement Core (50) Location -7/Factory Parts ------- > --- POWER (2) -------- (None) > --- PROPULSION (2) --- (None) > --- UTILITY (6) ------ Signal Interpreter Improved Melee Analysis Suite Improved Melee Analysis Suite > --- WEAPON (3) ------- Power Maul > --- INVENTORY (4) ---- Flak Gun Datajack Remote Datajack Peak State ------------ > --- POWER ------------ Improved Deuterium Engine Light Angular Momentum Engine > --- PROPULSION ------- Light Treads Medium Treads > --- UTILITY ---------- Signal Interpreter Improved Melee Analysis Suite Improved Melee Analysis Suite Improved Melee Analysis Suite Improved Melee Analysis Suite Improved Melee Analysis Suite > --- WEAPON ----------- Improved EM Pulse Cannon Gauss Cannon Chainsword > --- INVENTORY -------- EM Shotgun Ion Cannon Flak Gun Datajack [Rating: 48] Favorites ----------- Power Light Ion Engine Engine Light Ion Engine Power Core Light Nuclear Core Propulsion Light Treads Treads Light Treads Leg Aluminum Leg Hover Unit Combat Airjet Utility Improved Melee Analysis Suite Device Makeshift Terrain Scanner Storage Medium Storage Unit Processor Improved Melee Analysis Suite Hackware Hacking Suite Protection Light Armor Plating Weapon Gauss Cannon Energy Gun Medium Laser Energy Cannon Beam Cannon Ballistic Gun Gauss Rifle Ballistic Cannon Gauss Cannon Launcher Improved Grenade Launcher Impact Weapon Power Maul Slashing Weapon Chainsword Special Melee Weapon Datajack Build | -11 -10 -10 -10 -9 -8 -7 ------- Run | Scr Mat Min Exi Min Mat Fac Slots Evolved 6 | . . . . . 4 2 Power 1 | . . . . . 1 . Propulsion . | . . . . . . . Utility 4 | . . . . . 2 2 Weapon 1 | . . . . . 1 . Parts Attached 91 | 7 4 . 7 12 25 36 Power 15 | 2 . . 1 1 4 7 Engine 12 | 2 . . 1 1 4 4 Core 3 | . . . . . . 3 Reactor . | . . . . . . . Propulsion 20 | 2 . . . 6 5 7 Treads 9 | 2 . . . 2 2 3 Leg 10 | . . . . 3 3 4 Wheel . | . . . . . . . Hover 1 | . . . . 1 . . Flight . | . . . . . . . Utility 20 | 1 2 . 4 . 9 4 Device 2 | . . . 2 . . . Storage 3 | 1 1 . 1 . . . Processor 11 | . 1 . . . 6 4 Hackware 1 | . . . 1 . . . Protection 3 | . . . . . 3 . Artifact . | . . . . . . . Weapon 36 | 2 2 . 2 5 7 18 Energy Gun 10 | 2 1 . 2 . 3 2 Energy Cannon 8 | . 1 . . 3 . 4 Ballistic Gun 4 | . . . . . . 4 Ballistic Cannon 5 | . . . . . 1 4 Launcher 3 | . . . . 2 1 . Special Weapon . | . . . . . . . Impact Weapon 2 | . . . . . . 2 Slashing Weapon 3 | . . . . . 2 1 Piercing Weapon . | . . . . . . . Special Melee Weapon 1 | . . . . . . 1 Unidentified Prototypes . | . . . . . . . Parts Lost 30 | . . . . 5 8 17 Power 9 | . . . . 1 2 6 Propulsion 6 | . . . . 2 1 3 Utility 4 | . . . . . 1 3 Weapon 11 | . . . . 2 4 5 Highest Loss Streak 11 | . . . . 5 3 11 Average Slot Usage (%) 96 | . 99 100 99 94 94 96 Engine 12 | . 14 14 14 12 15 10 Core 1 | . . . . . . 2 Treads 16 | . 28 28 28 16 15 7 Leg 4 | . . . . 11 2 6 Storage 6 | . 14 14 13 14 . . Processor 29 | . 13 14 14 14 35 45 Energy Gun 6 | . 14 14 14 7 2 1 Energy Cannon 7 | . 13 14 14 9 6 3 Ballistic Cannon 3 | . . . . . 4 7 Launcher 1 | . . . . 8 2 . Slashing Weapon 4 | . . . . . 8 6 Naked Turns . | . . . . . . . Heaviest Build 37 | 13 18 18 18 29 37 36 Greatest Support 56 | 40 40 40 40 56 56 48 Greatest Overweight (x) 3 | . . . . 2 3 2 Average Overweight (x) . | . . . . . . . Largest Inventory Capacity 8 | 6 8 8 8 8 8 4 Average Capacity 5 | 5 6 8 7 8 4 4 Most Carried 6 | 4 5 5 6 6 6 4 Average Carried 3 | 2 3 5 3 3 3 2 Final Capacity 8 | 6 8 8 8 8 4 4 Final Carried 5 | 3 5 5 3 5 4 3 Class Distribution -------------------- 78% | Mutant 21% | Scavenger-Mutant Dominant Class ---------------- Mutant | -10/Materials Mutant | -10/Mines Mutant | -10/Exiles Mutant | -9/Mines Mutant | -8/Materials Mutant | -7/Factory Resources | -11 -10 -10 -10 -9 -8 -7 ----------- Run | Scr Mat Min Exi Min Mat Fac Matter Collected 1897 | 270 . 40 17 81 567 922 Remotely . | . . . . . . . Salvage Created 3049 | 100 53 59 168 70 1226 1373 Parts 180 | . 6 3 7 11 66 87 Haulers Intercepted 4 | . . . . . 3 1 Recyclers Shooed 1 | . . . . . 1 . Parts Field Recycled . | . . . . . . . Retrieved Matter . | . . . . . . . Parts Self-Destructed . | . . . . . . . Prevented . | . . . . . . . Kills | -11 -10 -10 -10 -9 -8 -7 ------- Run | Scr Mat Min Exi Min Mat Fac Combat Hostiles Destroyed 52 | . 1 2 3 4 22 20 Melee 17 | . . . . . 12 5 Guns 6 | . 1 1 3 1 . . Cannons 26 | . . 1 . 2 9 14 AOE 2 | . . . . 1 1 . Classes Destroyed 16 | 1 2 1 1 2 7 2 Worker 6 | . . . . . 2 4 Builder 11 | . . . . . 4 7 Tunneler 1 | . . . . 1 . . Hauler 4 | . . . . . 3 1 Recycler 3 | 1 . . . . 1 1 Mechanic 1 | . . . . . . 1 Operator 2 | . 1 . . . . 1 Watcher 4 | . . . . . 1 3 Swarmer 7 | . . 1 . 3 3 . Grunt 26 | . 1 1 2 . 12 10 Brawler 1 | . . . . . 1 . Duelist 3 | . . . . . 2 1 Sentry 6 | . . . . . 4 2 Demolisher 1 | . . . . 1 . . Hunter 3 | . . . 1 . . 2 Programmer 5 | . . . . . . 5 Best Kill Streak 9 | 1 1 1 1 3 9 7 Combat Bots Only 6 | . 1 1 1 3 6 5 Max Kills in Single Turn 2 | 1 1 1 1 1 2 2 Gunslinging . | . . . . . . . Exploded 1 | . . . . 1 1 . Melee 1 | . . . . . 1 1 Uniques/NPCs Destroyed . | . . . . . . . Combat | -11 -10 -10 -10 -9 -8 -7 -------- Run | Scr Mat Min Exi Min Mat Fac Damage Taken 4897 | . 56 57 . 660 1355 2769 Core 1115 | . 10 6 . 154 231 714 Absorbed by Shields . | . . . . . . . Core Remaining (%) 63 | 100 . . . 32 58 . Volleys Fired 165 | 2 9 7 11 7 45 84 Largest 2 | 1 2 2 2 2 2 2 Hottest 134 | 40 110 110 110 110 134 129 Shots Fired 293 | 2 13 14 22 14 71 157 Gun 53 | 2 4 7 11 5 17 7 Cannon 230 | . 9 7 11 5 48 150 Launcher 10 | . . . . 4 6 . Special . | . . . . . . . Kinetic 133 | . . . . . 29 104 Thermal 108 | . 13 14 22 10 31 18 Explosive 10 | . . . . 4 6 . Electromagnetic 42 | 2 . . . . 5 35 Robot Hit Streak 8 | 2 5 8 7 8 7 8 Robot Miss Streak 6 | . 2 4 1 1 3 6 Penetration Max 1 | . . . . . . 1 Secondary Targets . | . . . . . . . Shots Hit Robots 250 | 2 7 10 14 7 80 130 Core Hits 118 | 1 3 2 6 9 43 54 Critical Hits 10 | . . . . . 2 8 Critical Kills 4 | . . . . . . 4 Critical Parts Destroyed 5 | . . . . . 2 3 Melee Attacks 80 | . . . . . 38 42 Impact 23 | . . . . . . 23 Slashing 56 | . . . . . 38 18 Piercing . | . . . . . . . Sneak Attacks 13 | . . . . . 6 7 Combat Hostiles . | . . . . . . . Follow-up Attacks . | . . . . . . . Damage Inflicted 8872 | 30 139 146 194 106 3293 4964 Guns 673 | 30 51 75 125 25 222 145 Cannons 3745 | . 88 71 69 34 848 2635 Explosions 435 | . . . . 47 388 . Melee 4019 | . . . . . 1835 2184 Ramming . | . . . . . . . Kinetic 2316 | . . . . . 483 1833 Thermal 1279 | . 139 146 194 59 466 275 Explosive 435 | . . . . 47 388 . Electromagnetic 823 | 30 . . . . 121 672 Impact 698 | . . . . . . 698 Slashing 3321 | . . . . . 1835 1486 Piercing . | . . . . . . . Highest Corruption 8 | . . . . . . 8 Average Corruption 3 | . . . . . . 3 Corruption Purged . | . . . . . . . Effects 27 | . . . . . . 27 Message Errors 7 | . . . . . . 7 Matter Fused 3 | . . . . . . 3 Heat Flow Errors 3 | . . . . . . 3 Data Loss (minor) 3 | . . . . . . 3 Data Loss (major) 3 | . . . . . . 3 Targeting Errors 6 | . . . . . . 6 Weapon Failures 2 | . . . . . . 2 Overload Shots . | . . . . . . . Overflow Damage 862 | . . . . . 298 564 Projectiles 104 | . . . . . . 104 Explosions . | . . . . . . . Melee 758 | . . . . . 298 460 Knockbacks 28 | . . . . . 5 23 Impact 5 | . . . . . . 5 Kinetic 19 | . . . . . 4 15 Secondary 4 | . . . . . 1 3 Self-Inflicted Damage 84 | . . . . 67 17 . Shots 4 | . . . . 3 1 . Rammed . | . . . . . . . Targets Rammed . | . . . . . . . Kicked . | . . . . . . . Crushed . | . . . . . . . Highest Temperature 555 | . 128 144 192 144 555 435 Average Temperature 114 | . 48 69 70 47 116 135 Received Heat Transfer 1368 | . 30 6 . . 585 747 Effects 15 | . . . . . 6 9 Shutdowns 6 | . . . . . 2 4 Energy Bleed 3 | . . . . . 2 1 Interference 2 | . . . . . 1 1 Matter Decay 2 | . . . . . . 2 Damage (minor) 1 | . . . . . . 1 Damage (major) 1 | . . . . . 1 . Siege Activations . | . . . . . . . Robots Corrupted . | . . . . . . . Combat Hostiles . | . . . . . . . Parts Fried 2 | . . . . . . 2 Impact Corruptions 9 | . . . . . . 9 Robots Melted . | . . . . . . . Combat Hostiles . | . . . . . . . Parts Melted 6 | . . 1 . . 3 2 Heat Transferred 2590 | . 333 370 518 148 814 407 Parts Sabotaged . | . . . . . . . Parts Stolen . | . . . . . . . Parts Stripped . | . . . . . . . Power Chain Reactions . | . . . . . . . Missiles Intercepted . | . . . . . . . Alert | -11 -10 -10 -10 -9 -8 -7 ------- Run | Scr Mat Min Exi Min Mat Fac Peak Influence 307 | 5 38 87 . 75 275 307 Average Influence 99 | 4 24 41 . 35 130 135 Maximum Alert Level 1 | . . . . . 1 1 Low Security (%) 87 | 100 100 100 . 100 71 86 Level 1 12 | . . . . . 28 13 Level 2 . | . . . . . . . Level 3 . | . . . . . . . Level 4 . | . . . . . . . Level 5 . | . . . . . . . High Security . | . . . . . . . Max Security . | . . . . . . . Squads Dispatched 12 | . 3 . . . 1 8 Investigation 2 | . 1 . . . 1 . Extermination 5 | . . . . . . 5 Reinforcement 5 | . 2 . . . . 3 Assault . | . . . . . . . Garrison . | . . . . . . . Intercept . | . . . . . . . Construction Impeded 1 | . . . . . . 1 Haulers Reinforced 1 | . . . . . . 1 Stealth | -11 -10 -10 -10 -9 -8 -7 --------- Run | Scr Mat Min Exi Min Mat Fac Distress Signals 2 | . . . . . 2 . Communications Jammed . | . . . . . . . Distress Signals . | . . . . . . . Times Spotted 87 | . 3 5 . 9 26 44 Peak Tracking Total 6 | . 1 2 . 6 4 6 Tactical Retreats 7 | . . . . 2 1 4 Traps | -11 -10 -10 -10 -9 -8 -7 ------- Run | Scr Mat Min Exi Min Mat Fac Traps Triggered 3 | . . . . 2 1 . Indirectly . | . . . . . . . Trap Hack Attempts . | . . . . . . . Triggered . | . . . . . . . Disarmed . | . . . . . . . Reprogrammed . | . . . . . . . Reused . | . . . . . . . Traps Extracted . | . . . . . . . Installed . | . . . . . . . Triggered . | . . . . . . . Machines | -11 -10 -10 -10 -9 -8 -7 ---------- Run | Scr Mat Min Exi Min Mat Fac Machines Disabled 2 | . . . . . . 2 Max in Single Turn 1 | . . . . . . 1 Machines Sabotaged . | . . . . . . . Garrisons Compromised . | . . . . . . . Overloaded Fab Kills . | . . . . . . . Fab Network Shutdowns . | . . . . . . . Hacking | -11 -10 -10 -10 -9 -8 -7 --------- Run | Scr Mat Min Exi Min Mat Fac Machines Accessed 11 | . 4 . 4 1 1 1 Terminals 5 | . 3 . . . 1 1 Fabricators . | . . . . . . . Repair Stations . | . . . . . . . Recycling Units 1 | . 1 . . . . . Scanalyzers . | . . . . . . . Garrison Access . | . . . . . . . Total Hacks 63 | . 9 . 48 1 3 2 Successful 56 | . 5 . 48 1 2 . Failed 7 | . 4 . . . 1 2 Catastrophic 3 | . 3 . . . . . Database Lockouts . | . . . . . . . Manual 8 | . 4 . 2 . . 2 Terminals 12 | . 7 . . . 3 2 Fabricators . | . . . . . . . Repair Stations . | . . . . . . . Recycling Units 2 | . 2 . . . . . Scanalyzers . | . . . . . . . Garrison Access . | . . . . . . . Terminal Hacks 54 | . 3 . 48 1 2 . Record 48 | . . . 48 . . . Open Door 1 | . . . . 1 . . Locate Traps 2 | . 1 . . . 1 . Dispatch Records 1 | . . . . . 1 . Transport Status 1 | . 1 . . . . . Zone Layout 1 | . 1 . . . . . Fabricator Hacks . | . . . . . . . Repair Station Hacks . | . . . . . . . Recycling Unit Hacks 2 | . 2 . . . . . Report Inventory 1 | . 1 . . . . . Retrieve Components 1 | . 1 . . . . . Scanalyzer . | . . . . . . . Garrison Access Hacks . | . . . . . . . Unauthorized Hacks . | . . . . . . . Terminals . | . . . . . . . Fabricators . | . . . . . . . Repair Stations . | . . . . . . . Recycling Units . | . . . . . . . Scanalyzers . | . . . . . . . Garrison Access . | . . . . . . . Data Cores Recovered . | . . . . . . . Used . | . . . . . . . Hacking Detections 5 | . 3 . . . 1 1 Full Trace Events 3 | . 2 . . . 1 . Feedback Events . | . . . . . . . Feedback Blocked . | . . . . . . . Robot Schematics Acquired . | . . . . . . . Robots Built . | . . . . . . . Matter . | . . . . . . . Time . | . . . . . . . Total Robot Build Rating . | . . . . . . . Part Schematics Acquired . | . . . . . . . Parts Built . | . . . . . . . Matter . | . . . . . . . Time . | . . . . . . . Total Part Build Rating . | . . . . . . . Parts Repaired . | . . . . . . . Time . | . . . . . . . Parts Recycled . | . . . . . . . Recycled Matter . | . . . . . . . Retrieved Matter . | . . . . . . . Retrieved Components 6 | . 6 . . . . . Parts Scanalyzed . | . . . . . . . Part Schematics Acquired . | . . . . . . . Parts Damaged . | . . . . . . . Bothacking | -11 -10 -10 -10 -9 -8 -7 ------------ Run | Scr Mat Min Exi Min Mat Fac Used RIF Installer . | . . . . . . . Robots Hacked 1 | . . . . . . 1 Non-combat . | . . . . . . . Combat 1 | . . . . . . 1 Robot Hacks Applied 1 | . . . . . . 1 parse_system 1 | . . . . . . 1 Relay Couplers Released . | . . . . . . . Robots Rewired . | . . . . . . . Allies Hacked . | . . . . . . . Hacks Repelled . | . . . . . . . Allies | -11 -10 -10 -10 -9 -8 -7 -------- Run | Scr Mat Min Exi Min Mat Fac Total Allies 1 | . . 1 . . . . Largest Group 1 | . . 1 1 . . . Highest-Rated Group 31 | . . 31 31 . . . Highest-Rated Ally 31 | . . 31 31 . . . Total Orders . | . . . . . . . Ally Attacks 10 | . . 10 . . . . Total Damage 107 | . . 107 . . . . Kills 1 | . . 1 . . . . Allies Corrupted . | . . . . . . . Allies Melted . | . . . . . . . Intel | -11 -10 -10 -10 -9 -8 -7 ------- Run | Scr Mat Min Exi Min Mat Fac Robot Analysis Total . | . . . . . . . Derelict Logs Recovered 2 | . . 1 . 1 . . Drone Launches . | . . . . . . . Drone Recoveries . | . . . . . . . Exploration | -11 -10 -10 -10 -9 -8 -7 ------------- Run | Scr Mat Min Exi Min Mat Fac Turns Passed 5731 | 113 318 282 1017 888 1013 2100 Spaces Moved 3073 | 61 178 164 603 584 470 1013 Core 11 | 4 . . . 6 . 1 Treads 2419 | 57 178 164 603 319 410 688 Legs 643 | . . . . 259 60 324 Wheels . | . . . . . . . Hover . | . . . . . . . Flight . | . . . . . . . Fastest Speed 50 | 50 160 160 160 120 120 50 Average Speed 157 | 152 160 160 160 144 158 162 Slowest Speed 210 | 160 160 160 160 160 210 190 Overloaded Moves . | . . . . . . . Propulsion Burnouts . | . . . . . . . Robots Hopped . | . . . . . . . Cave-ins Triggered . | . . . . . . . Exploration Rate (%) 48 | 4 37 38 91 99 43 28 Regions Visited 6 Branch Regions 3 Pre-discovered Areas 3 | . . 2 1 . . . Known Exits Taken 5 | . 1 1 1 1 1 . Unknown Exits Taken 1 | 1 . . . . . . Scrap Searched 4 | . . . . 4 . . Spaces Dug . | . . . . . . . Terrain Destroyed 124 | . . . . 38 64 22 Melee . | . . . . . . . Projectile 29 | . . . . . 7 22 AOE 95 | . . . . 38 57 . Actions | -11 -10 -10 -10 -9 -8 -7 --------- Run | Scr Mat Min Exi Min Mat Fac Total 3568 | 78 199 170 638 619 615 1249 Wait 33 | . . . . . 9 24 Move 3067 | 60 177 163 602 583 469 1013 Hop . | . . . . . . . Pick Up 76 | 9 6 . 7 12 17 25 Fast Attach 12 | . . . 1 . 7 4 Attach 69 | 6 2 . 5 11 16 29 Detach 7 | . . . . 2 . 5 Swap 10 | 1 2 . 1 1 2 3 Drop 51 | . 3 . 11 3 14 20 Fire 165 | 2 9 7 11 7 45 84 Melee 78 | . . . . . 36 42 Ram . | . . . . . . . Kick . | . . . . . . . Crush . | . . . . . . . Escape Stasis . | . . . . . . . Rewire . | . . . . . . . Trap . | . . . . . . . Miscellaneous . | . . . . . . . Route ------- -11/Scrapyard -10/Materials -10/Mines -10/Exiles (discovered 2 exits: *Min x2) -9/Mines (discovered 2 exits: *Mat x2) -8/Materials (discovered 2 exits: *Fac / *Sto) -7/Factory History --------- Turn | Location | Event 13 | -11/Scrapyard | Discovered new exit (range 15) 114 | -11/Scrapyard | Entered Materials 310 | -10/Materials | Build established: Mutant 369 | -10/Materials | Discovered new exit (range 16) 421 | -10/Materials | Identified exit to Mines 432 | -10/Materials | Entered Mines 439 | -10/Mines | Escorted by a lone wolf Derelict 464 | -10/Mines | Learned location of Storage (-8) 619 | -10/Mines | Learned location of Zion (-6) 700 | -10/Mines | Deemed a non-threat by the Exiles lab entrance 701 | -10/Mines | Discovered new exit (range 5) 708 | -10/Mines | Identified exit to Exiles 714 | -10/Mines | Entered Exiles 714 | -10/Exiles | Found Exiles lab destroyed 714 | -10/Exiles | Accompanied by 1 ally 740 | -10/Exiles | Discovered new exit (range 15) 761 | -10/Exiles | Identified exit to Mines 1321 | -10/Exiles | Discovered exit to Mines (range 14) 1731 | -10/Exiles | Entered Mines 1737 | -9/Mines | Assembled infested the area 1742 | -9/Mines | Assisted by a Guerilla fighting off Assembled 2201 | -9/Mines | Core integrity fell below 50% 2227 | -9/Mines | Lost 5 parts (1p2n2w) 2252 | -9/Mines | Received a Rocket Launcher from a helpful Derelict 2287 | -9/Mines | Identified exit to Materials 2526 | -9/Mines | Discovered exit to Materials (range 11) 2531 | -9/Mines | Met a Derelict who couldn't figure out how to use a Trap Extractor 2619 | -9/Mines | Entered Materials 2619 | -8/Materials | Evolved 4 slots: Power x1, Utility x2, Weapon x1 3082 | -8/Materials | Discovered new exit (range 12) 3106 | -8/Materials | Identified exit to Storage 3476 | -8/Materials | Lost 3 parts (1p2w) 3592 | -8/Materials | Discovered new exit (range 16) 3631 | -8/Materials | Identified exit to Factory 3632 | -8/Materials | Entered Factory 3632 | -7/Factory | Evolved 2 slots: Utility x2 3771 | -7/Factory | Build established: Scavenger-Mutant 5081 | -7/Factory | Build established: Mutant 5676 | -7/Factory | Core integrity fell below 50% 5711 | -7/Factory | Core integrity fell below 20% 5730 | -7/Factory | Lost 11 parts (3p2n3u3w) 5732 | -7/Factory | Destroyed by P-60 Hacker with Shock Rifle Last Messages --------------- 05720_ P-60 Hacker IFF system glitched. 05721_ K-01 Serf collects debris. 05721_ P-60 Hacker resets P-60 Hacker, system corruption cleaned. 05723_ Destroyed Shock Rifle. 05723_ P-60 Hacker system corrupted by crushing effect. 05723_ P-60 Hacker knocked back. 05724_ K-01 Serf collects debris. 05726_ Destroyed Imp. Heat Sink. 05726_ Destroyed Remote Datajack. 05726_ P-60 Hacker system corrupted by crushing effect. 05727_ P-60 Hacker resets P-60 Hacker, system corruption cleaned. 05728_ K-01 Serf collects debris. 05728_ P-60 Hacker knocked back. 05728_ Destroyed Gravmag System. 05728_ P-60 Hacker system corrupted by crushing effect. 05729_ K-01 Serf collects debris. 05731_ P-60 Hacker resets P-60 Hacker, system corruption cleaned. 05731_ P-60 Hacker knocked back. 05732_ P-60 Hacker resets P-60 Hacker, system corruption cleaned. 05732_ K-01 Serf collects debris. Map ----- +----------------------------------------------------+ | ??????????????????????# """ """ # | | ??????????????????????# """ """ # | | ??????????????????????# # | | ??????????????????????##################### | | ???????? ?????????????????????????????# | | ######?" #????????????????????????????# | | ??# #????????????????????????????# | | ??" #????????????????????????????# | | "" ""??+ #????????????????????????????# | | "" ""??# #??????????????????########### | | "" ""??# #??????????????????#! # ## | | #####??# #??????????????????# # # | | ???????# #?????############## """"""" # # | | ???????# #?????# # """"""" + + | | ???????# #?????# ""# """"""" # # | | ???????# #?????# """"""" ""# """"""" # # | | ???????# #?????# """"""" ""# [# # | | ???????# %! #?????# """"""" T#= [# # | | ######## * #?????# """"""" ""######+#### # | | # # * #?????# ""#???????? ## | | # " "# #?????# """ ""#??????? #? | | # " ""# % #?????# """"" #?????? #? | | # " ""# ! #?????# "" "" #????? #? | | + " ""# [ #?????# #???? #? | | # " ""# *[!#?????# % #???? #? | | # " T"# [ !############@########## ## | | # " ""# !! p*% !%= | | # " ""# %rpk =! | | # " ""# k | | # """ k | | # [ "# u | | # # #####+###################+########### | | ####+### # #?????# #???# | | # #?????# #???# | | % # """ """ #?????# ##### | | + """ """ #?????# + | | # """ """ #?????# ##### | | # #?????# """ """ #???# | | # ######## """ """ #?????# """ """ #???# | | # #??????# """ """ #?????# """ """ #???? | | # #??????# """ """ ?#?????# "" "" #???? | | / #??????# ??????????# "" "" #???? | | # #??????# ???????????# #???? | | # #??????? ? ????????????# #???? | | # #?########?###????????????###########+##???? | | # #? ??????????????????????######?# #????? | | # # """""??????????????????????# # #????? | | % # """""??????????????????????# # ###### | | + """""??????????????????????# / | | # """""??????????????????????# # ###### | +----------------------------------------------------+ Best States ------------- Heat Dissipation 34 Energy Generation 29 Energy Capacity 430 Matter Stores 300 Matter Capacity 300 Sight Range 16 Terrain Scan Density 10 Armor Coverage 300 Evasion (%) 40 Melee Accuracy 30 Launcher Accuracy 20 Recoil Reduction 2 Offensive Hacking 10 Item Schematics ----------------- None Robot Schematics ------------------ None Fabricated ------------ Nothing Alien Tech Used ----------------- None Achievements -------------- None Challenges ------------ None Game ------ Seed PotentialDamperBlaster Manual? 0 Play Time 00:52:56 Cumulative 12.6 hours Start 2020.06.11 @ 03:25:17 End 2020.06.11 @ 04:26:40 Sessions 1 Manual Loads 0 Difficulty Rogue Special Mode None Game No. 12 Rogue 12 Adventurer 0 Explorer 0 Win Type - Total 0 Types 0/0/0/0/0/0/0 Lore% 17 Gallery% 27 Achievement% 16 Wizard Run 0 Options --------- ASCII 0 Keyboard 0 Movement Mouse Keybinds 0 Fullscreen 1 Font 18/SmallcapsGlow Map View 76x50 Tactical HUD 1 Map Filters NONE Filters NONE Steam 1 RUN: 33c2417d-3d1c-4088-9a16-3ac6ccd59066